lending/lending_fUSD_20250411
["ID","MTS","AMOUNT","RATE_DAILY","PERIOD"]
[357707762,1744362642803,-170.42,0.00019258,2]
[357707763,1744362642814,-1077.46,0.0001933,2]
[357707764,1744362642824,-250.0,0.00019388,2]
[357707765,1744362642834,-166.67,0.00019427,2]
[357707766,1744362642844,-500.0,0.00019452,2]
[357707767,1744362642853,-1704.3,0.00019578,2]
[357707768,1744362642863,-168.49318327,0.00019578,2]
[357707769,1744362642873,-1583.982,0.000198,2]
[357707770,1744362642883,-184.9648083,0.000199,2]
[357707771,1744362642892,-4259.6221,0.000199,2]
[357707772,1744362642902,-1048.1608,0.000199,2]
[357707773,1744362642912,-198.94487519,0.000199,2]
[357707774,1744362642921,-1490.64370645,0.000199,2]
[357707775,1744362642931,-2600.51043315,0.000199,2]
[357707776,1744362642941,-402.47221004,0.000199,2]
[357707777,1744362642951,-168.82985362,0.000199,2]
[357707778,1744362642962,-8758.40452149,0.000199,2]
[357707779,1744362642971,-3648.38124824,0.000199,2]
[357707780,1744362642981,-175.15376358,0.00019973,2]
[357707781,1744362642991,-510.6839726,0.00019973,2]
[357707782,1744362643001,-500.0,0.00019973,2]
[357707783,1744362643010,-29464.8807154,0.00019986,2]
[357707784,1744362643020,-2356.6272312,0.00019986,2]
[357707785,1744362643030,-157.7040265,0.00019986,2]
[357707786,1744362643040,-7068.5047383,0.00019986,2]
[357707787,1744362643050,-154.36179165,0.00019999,2]
[357707788,1744362643060,-191.83825382,0.00019999,2]
[357707789,1744362643070,-624.0,0.0002,2]
[357707790,1744362643079,-515038.52239319,0.0002,2]
[357707791,1744362643154,-6477.4,0.0002,2]
[357707801,1744362675961,500.0,0.00033,120]
[357707802,1744362727177,300.0,0.00019886,120]
[357707803,1744362862836,313.041118,0.00033,120]
[357707804,1744362964163,171.25,0.00015412,2]
[357707806,1744363301888,-1097.77,0.00017111,2]
[357707807,1744363301920,-5090.42,0.00018264,2]
[357707808,1744363301952,-176.6203174,0.00018632,2]
[357707809,1744363301985,-350.0,0.00018732,12]
[357707810,1744363302018,-250.0,0.00018732,2]
[357707811,1744363302050,-250.0,0.00019091,2]
[357707812,1744363302082,-197.214489,0.00019104,2]
[357707813,1744363302117,-200.0,0.000193,7]
[357707814,1744363302148,-250.0,0.0001931,2]
[357707815,1744363302180,-1097.77,0.00019375,2]
[357707816,1744363302212,-250.0,0.00019379,2]
[357707817,1744363302243,-500.0,0.000194,7]
[357707818,1744363302274,-700.0,0.000195,7]
[357707819,1744363302305,-1000.0,0.000196,7]
[357707820,1744363302335,-1300.0,0.000197,7]
[357707821,1744363302366,-200.0,0.000198,7]
[357707822,1744363302398,-1539.0,0.000198,2]
[357707823,1744363302430,-1609.0,0.000198,2]
[357707824,1744363302465,-1000.0,0.000198,2]
[357707825,1744363302498,-1363.44,0.00019894,2]
[357707826,1744363302535,-166.68,0.00019894,2]
[357707827,1744363302570,-200.0,0.000199,7]
[357707828,1744363302605,-223.0,0.000199,2]
[357707829,1744363302637,-426.125,0.000199,2]
[357707830,1744363302671,-1000.0,0.000199,2]
[357707831,1744363302865,-268.3148067,0.000199,2]
[357707832,1744363302898,-5838.93634766,0.000199,2]
[357707833,1744363302930,-2432.2541655,0.000199,2]
[357707834,1744363302963,-500.0,0.00019973,2]
[357707835,1744363302996,-26781.3941463,0.00019986,2]
[357707836,1744363303028,-1491.4937195,0.00019986,2]
[357707837,1744363303063,-3919.6245129,0.00019986,2]
[357707838,1744363303095,-207.4,0.00019988,2]
[357707839,1744363303127,-554.0,0.0002,2]
[357707840,1744363303160,-337569.54249504,0.0002,2]
[357707841,1744363337008,-207.4,0.00019988,2]
[357707842,1744363337041,-300.0,0.00019999,2]
[357707843,1744363337304,-503.0,0.0002,2]
[357707844,1744363337338,-350.0,0.0002,12]
[357707845,1744363337371,-250.0,0.0002,2]
[357707846,1744363337405,-322389.6,0.0002,2]
[357707847,1744363366405,-1495.37,0.00027425,30]
[357707848,1744363423388,1395.67,0.00027425,30]
[357707849,1744363526213,172.92,0.00023,120]
[357707850,1744363528785,2112.57220619,0.00011,2]
[357707855,1744363568450,2396.36847378,8e-05,2]
[357707856,1744363568475,2978.32365334,8e-05,2]
[357707857,1744363630096,408.14995942,0.0002301,120]
[357707858,1744363676235,15909.72917292,0.0001,2]
[357707859,1744363684876,1027.96678351,0.00028,120]
[357707860,1744363686267,982.56986162,9.5e-05,2]
[357707861,1744363694472,9927.0893044,0.0001439,2]
[357707862,1744363705032,1861.90870501,0.0001,2]
[357707863,1744363706938,377.56595277,7.888e-05,2]
[357707864,1744363712497,9232.25919479,9.828e-05,2]
[357707865,1744363724842,6039.33772509,0.00013368,2]
[357707901,1744363831641,-162.08,0.00018686,2]
[357707903,1744363831651,-1000.0,0.00018764,2]
[357707905,1744363831661,-250.0,0.00019,2]
[357707909,1744363831670,-197.64,0.0001931,2]
[357707910,1744363831679,-150.0,0.0001931,2]
[357707913,1744363831689,-197.64,0.00019315,2]
[357707916,1744363831698,-197.64,0.0001932,2]
[357707917,1744363831709,-197.64,0.00019325,2]
[357707918,1744363831718,-197.64,0.0001933,2]
[357707919,1744363831727,-197.64,0.00019336,2]
[357707920,1744363831737,-197.64,0.00019341,2]
[357707921,1744363831747,-197.64,0.00019346,2]
[357707922,1744363831756,-197.64,0.00019351,2]
[357707923,1744363831765,-197.64,0.00019356,2]
[357707924,1744363831774,-197.64,0.00019361,2]
[357707925,1744363831784,-197.64,0.00019366,2]
[357707926,1744363831794,-197.64,0.00019371,2]
[357707927,1744363831803,-197.64,0.00019376,2]
[357707928,1744363831812,-197.64,0.00019381,2]
[357707929,1744363831822,-197.64,0.00019386,2]
[357707930,1744363831831,-197.64,0.00019391,2]
[357707931,1744363831841,-197.64,0.00019396,2]
[357707932,1744363831850,-197.64,0.00019401,2]
[357707933,1744363831859,-197.64,0.00019407,2]
[357707934,1744363831868,-257.0,0.00019616,2]
[357707935,1744363831877,-166.91971,0.000198,23]
[357707936,1744363831886,-1001.85147567,0.000199,2]
[357707937,1744363831952,-4210.5761301,0.000199,2]
[357707938,1744363831961,-170.5241787,0.000199,2]
[357707939,1744363831970,-10610.6215,0.000199,2]
[357707941,1744363831979,-305.4205991,0.000199,2]
[357707943,1744363831988,-19826.79985802,0.000199,2]
[357707945,1744363831997,-1621.502777,0.000199,2]
[357707947,1744363832006,-170.52417868,0.00019945,2]
[357707949,1744363832015,-500.0,0.00019973,2]
[357707950,1744363832023,-207.4,0.00019988,2]
[357707952,1744363832033,-190.24967948,0.0001999,2]
[357707953,1744363832042,-170.52417868,0.0001999,2]
[357707954,1744363832052,-576.0,0.0002,2]
[357707955,1744363832061,-896.12902664,0.0002,2]
[357707956,1744363832072,-36750.66317323,0.0002,2]
[357707957,1744363832087,-465.42,0.0002,2]
[357707961,1744363837838,-6596.03655,0.0002,2]
[357707962,1744363838000,-890.54535279,0.0002,2]
[357707963,1744363838055,-3173.29279129,0.0002,2]
[357707964,1744363838173,-93652.95570287,0.0002,2]
[357707979,1744363840208,-40811.42418101,0.0002,2]
[357707980,1744363840220,-1325.02918982,0.0002,2]
[357707981,1744363840231,-1223.93831346,0.0002,2]
[357707982,1744363840264,-4999.94938,0.0002,2]
[357707983,1744363840320,-159097.3674042,0.0002,2]
[357708055,1744363843311,-9724.10658701,0.0002,2]
[357708085,1744363846432,-32075.56507769,0.0002,2]
[357708090,1744363846466,-2541.2003837,0.0002,2]
[357708094,1744363846501,-8219.385488,0.0002,2]
[357708096,1744363846512,-381.31499986,0.0002,2]
[357708152,1744364117758,-1000.0,0.00044219,60]
[357708153,1744364117782,-1000.0,0.00044219,120]
[357708154,1744364117807,-1307.3,0.00044219,60]
[357708155,1744364117831,-2000.0,0.00044219,120]
[357708156,1744364117855,-150.0,0.00044219,30]
[357708157,1744364117882,-206.3,0.00044219,30]
[357708158,1744364117907,-206.3,0.00044219,30]
[357708159,1744364117932,-1032.91,0.00044219,120]
[357708160,1744364117960,-4948.0,0.00044219,30]
[357708161,1744364117985,-181.02472582,0.00044219,60]
[357708162,1744364118010,-1000.0,0.00044219,30]
[357708163,1744364118035,-224.42598239,0.00044219,120]
[357708164,1744364118063,-386.65927631,0.00044219,90]
[357708165,1744364118090,-173.74483018,0.00044219,120]
[357708166,1744364118116,-511.68982929,0.00044219,30]
[357708167,1744364118141,-382.42439051,0.00044219,30]
[357708168,1744364118169,-2275.23153807,0.00044219,120]
[357708169,1744364118196,-1073.01269804,0.00044219,91]
[357708170,1744364118223,-1930.3252242,0.00044219,30]
[357708171,1744364118249,-715.81415667,0.00044219,30]
[357708172,1744364118274,-877.25307459,0.00044219,30]
[357708173,1744364118299,-1000.0,0.00044219,30]
[357708174,1744364118323,-274.73185397,0.00044219,120]
[357708175,1744364118348,-429.70996409,0.00044219,120]
[357708176,1744364118373,-2007.45849824,0.00044219,30]
[357708177,1744364118399,-966.08423494,0.00044219,120]
[357708178,1744364118423,-740.27318292,0.00044219,30]
[357708179,1744364118449,-2655.88844979,0.00044219,120]
[357708180,1744364118475,-290.17974545,0.00044219,30]
[357708181,1744364118500,-1957.97023017,0.00044219,30]
[357708182,1744364118526,-1109.81305899,0.00044219,30]
[357708183,1744364118550,-500.0,0.00044219,30]
[357708184,1744364118574,-420.63810079,0.00044219,120]
[357708185,1744364118598,-237.89680898,0.00044219,30]
[357708186,1744364118623,-162.82216156,0.00044219,120]
[357708187,1744364118647,-370.89023797,0.00044219,120]
[357708188,1744364118671,-859.27793314,0.00044219,30]
[357708189,1744364118696,-867.49634926,0.00044219,30]
[357708190,1744364118722,-1586.35870828,0.00044219,90]
[357708191,1744364118873,-183.59127926,0.00044219,120]
[357708192,1744364118937,-934.41569741,0.00044219,30]
[357708193,1744364118964,-826.47800511,0.00044219,120]
[357708194,1744364118988,-774.11187229,0.00044219,60]
[357708195,1744364119013,-209.14162115,0.00044219,30]
[357708196,1744364119037,-581.13874528,0.00044219,30]
[357708197,1744364119061,-965.33492065,0.00044219,30]
[357708198,1744364119085,-319.94363838,0.00044219,120]
[357708199,1744364119112,-208.96012748,0.00044219,120]
[357708200,1744364119137,-545.87017175,0.00044219,120]
[357708201,1744364119162,-190.86231036,0.00044219,30]
[357708202,1744364119187,-1016.28372475,0.00044219,30]
[357708203,1744364119211,-352.82675297,0.00044219,30]
[357708204,1744364119235,-409.09956071,0.00044219,60]
[357708205,1744364119259,-705.99398995,0.00044219,120]
[357708206,1744364119283,-396.3341296,0.00044219,30]
[357708207,1744364119306,-207.04936629,0.00044219,30]
[357708208,1744364119330,-406.94814461,0.00044219,120]
[357708209,1744364119355,-365.61948694,0.00044219,120]
[357708210,1744364119381,-206.04945889,0.00044219,120]
[357708211,1744364119406,-466.20793254,0.00044219,30]
[357708212,1744364119431,-1235.74804143,0.00044219,120]
[357708213,1744364119456,-1016.12467471,0.00044219,30]
[357708214,1744364119480,-379.74727266,0.00044219,120]
[357708215,1744364119504,-199.64029219,0.00044219,120]
[357708216,1744364119529,-354.89508433,0.00044219,120]
[357708217,1744364119552,-452.4727976,0.00044219,30]
[357708218,1744364119576,-1085.37654275,0.00044219,120]
[357708219,1744364119600,-514.85101132,0.00044219,120]
[357708220,1744364119624,-633.51932637,0.00044219,30]
[357708221,1744364119647,-451.57488947,0.00044219,30]
[357708222,1744364119673,-381.65522421,0.00044219,120]
[357708223,1744364119698,-414.42392853,0.00044219,30]
[357708224,1744364119722,-954.7098641,0.00044219,120]
[357708225,1744364119746,-382.28748042,0.00044219,120]
[357708226,1744364119769,-220.32819925,0.00044219,60]
[357708227,1744364119793,-887.94862385,0.00044219,30]
[357708228,1744364119818,-781.64185743,0.00044219,120]
[357708229,1744364119842,-434.08066232,0.00044219,120]
[357708230,1744364119868,-388.38835414,0.00044219,120]
[357708231,1744364119895,-1002.09683525,0.00044219,120]
[357708232,1744364119920,-717.70567321,0.00044219,120]
[357708233,1744364119945,-218.12108099,0.00044219,60]
[357708234,1744364119969,-949.66744109,0.00044219,38]
[357708235,1744364119996,-2111.85459493,0.00044219,120]
[357708236,1744364120021,-2702.18041246,0.00044219,30]
[357708237,1744364120046,-758.28051763,0.00044219,60]
[357708238,1744364120070,-1766.24319611,0.00044219,30]
[357708239,1744364120094,-204.78301733,0.00044219,31]
[357708240,1744364120118,-188.21990816,0.00044219,90]
[357708241,1744364120142,-1469.32725488,0.00044219,30]
[357708242,1744364120169,-2551.0330988,0.00044219,120]
[357708243,1744364120194,-1101.77177479,0.00044219,120]
[357708244,1744364120219,-2204.94018092,0.00044219,30]
[357708245,1744364120242,-252.61675311,0.00044219,120]
[357708246,1744364120266,-981.67714867,0.00044219,120]
[357708247,1744364120290,-211.33632273,0.00044219,120]
[357708248,1744364120314,-263.134435,0.00044219,30]
[357708249,1744364120340,-508.70141351,0.00044219,120]
[357708250,1744364120365,-202.68094713,0.00044219,120]
[357708251,1744364120390,-606.40608589,0.00044219,120]
[357708252,1744364120416,-428.77462524,0.00044219,30]
[357708253,1744364120442,-1299.36940072,0.00044219,30]
[357708254,1744364120468,-615.68,0.00044219,120]
[357708255,1744364120493,-2987.0,0.00044219,34]
[357708256,1744364120518,-1067.0,0.00044219,30]
[357708257,1744364120543,-1067.0,0.00044219,30]
[357708258,1744364120567,-1067.0,0.00044219,30]
[357708259,1744364120591,-1067.0,0.00044219,30]
[357708260,1744364120614,-1067.0,0.00044219,30]
[357708261,1744364120638,-1135.43976326,0.00044219,30]
[357708262,1744364120663,-273.691217,0.00044219,120]
[357708263,1744364120688,-311.0,0.00044219,120]
[357708264,1744364120715,-50000.0,0.00044219,30]
[357708265,1744364120741,-50000.0,0.00044219,31]
[357708266,1744364120768,-50000.0,0.00044219,32]
[357708267,1744364120795,-50000.0,0.00044219,33]
[357708268,1744364120820,-500.33854195,0.00044219,30]
[357708269,1744364120845,-3000.0,0.00044219,30]
[357708270,1744364120870,-150.0,0.00044219,120]
[357708271,1744364122699,2000.0,0.00032877,120]
[357708272,1744364122752,2000.0,0.00032877,120]
[357708273,1744364122814,1525.066157,0.00032877,120]
[357708321,1744364234624,200.0,0.00044219,120]
[357708322,1744364235319,207.4,0.00044219,120]
[357708323,1744364235961,215.0738,0.00044219,120]
[357708324,1744364236589,223.0315306,0.00044219,120]
[357708325,1744364237271,231.28369723,0.00044219,120]
[357708326,1744364238365,239.84119403,0.00044219,120]
[357708327,1744364238522,248.71531821,0.00044219,120]
[357708328,1744364239705,257.91778498,0.00044219,120]
[357708329,1744364240313,267.46074303,0.00044219,120]
[357708330,1744364240917,277.35679052,0.00044219,120]
[357708331,1744364242093,287.61899177,0.00044219,120]
[357708332,1744364242854,298.26089446,0.00044219,120]
[357708333,1744364243506,309.29654756,0.00044219,120]
[357708334,1744364244147,320.74051982,0.00044219,120]
[357708335,1744364244808,332.60791905,0.00044219,120]
[357708336,1744364245498,344.91441206,0.00044219,120]
[357708337,1744364246143,357.6762453,0.00044219,120]
[357708338,1744364246788,370.91026638,0.00044219,120]
[357708339,1744364247476,384.63394623,0.00044219,120]
[357708340,1744364248132,384.63394623,0.00044219,120]
[357708341,1744364273201,151.041118,0.00033,120]
[357708343,1744364341468,5000.0,0.00044215,36]
[357708346,1744364390063,3000.0,0.00044215,30]
[357708403,1744364459673,1302.62,0.00027425,30]
[357708409,1744364529929,950.11766347,0.00044215,120]
[357708410,1744364536103,200.0,0.00044215,120]
[357708411,1744364536722,207.4,0.00044215,120]
[357708412,1744364537650,215.0738,0.00044215,120]
[357708413,1744364538185,223.0315306,0.00044215,120]
[357708414,1744364538813,231.28369723,0.00044215,120]
[357708415,1744364539435,239.84119403,0.00044215,120]
[357708416,1744364540135,248.71531821,0.00044215,120]
[357708417,1744364540787,257.91778498,0.00044215,120]
[357708418,1744364541421,267.46074303,0.00044215,120]
[357708419,1744364542049,277.35679052,0.00044215,120]
[357708420,1744364542700,287.61899177,0.00044215,120]
[357708421,1744364543833,298.26089446,0.00044215,120]
[357708422,1744364544635,309.29654756,0.00044215,120]
[357708423,1744364545152,320.74051982,0.00044215,120]
[357708424,1744364545811,332.60791905,0.00044215,120]
[357708425,1744364546549,344.91441206,0.00044215,120]
[357708426,1744364547130,357.6762453,0.00044215,120]
[357708427,1744364547785,370.91026638,0.00044215,120]
[357708428,1744364548400,384.63394623,0.00044215,120]
[357708429,1744364549176,384.63394623,0.00044215,120]
[357708430,1744364629292,497.63014822,0.00033,120]
[357708459,1744364834308,200.0,0.0004423,120]
[357708460,1744364835101,207.4,0.0004423,120]
[357708461,1744364835598,215.0738,0.0004423,120]
[357708462,1744364836307,223.0315306,0.0004423,120]
[357708463,1744364836883,231.28369723,0.0004423,120]
[357708464,1744364838011,239.84119403,0.0004423,120]
[357708465,1744364838754,248.71531821,0.0004423,120]
[357708466,1744364839381,257.91778498,0.0004423,120]
[357708467,1744364840016,267.46074303,0.0004423,120]
[357708468,1744364841261,277.35679052,0.0004423,120]
[357708469,1744364841611,287.61899177,0.0004423,120]
[357708470,1744364842136,298.26089446,0.0004423,120]
[357708471,1744364842756,309.29654756,0.0004423,120]
[357708472,1744364843379,320.74051982,0.0004423,120]
[357708473,1744364844061,332.60791905,0.0004423,120]
[357708474,1744364845211,344.91441206,0.0004423,120]
[357708475,1744364845837,357.6762453,0.0004423,120]
[357708476,1744364846474,370.91026638,0.0004423,120]
[357708477,1744364847096,384.63394623,0.0004423,120]
[357708478,1744364847748,384.63394623,0.0004423,120]
[357708544,1744365033022,-987.99,0.00017132,2]
[357708546,1744365033032,-250.0,0.00018005,2]
[357708547,1744365033042,-250.0,0.00018813,2]
[357708549,1744365033052,-250.0,0.00018845,2]
[357708550,1744365033062,-200.0,0.00019043,7]
[357708552,1744365033073,-247.72,0.0001907,2]
[357708554,1744365033082,-200.0,0.00019077,2]
[357708555,1744365033092,-1000.0,0.00019158,2]
[357708556,1744365033101,-350.0,0.00019248,12]
[357708557,1744365033111,-2000.0,0.0001928,2]
[357708558,1744365033120,-987.99,0.00019396,2]
[357708559,1744365033130,-271.17,0.00019506,2]
[357708560,1744365033142,-166.91972549,0.000198,23]
[357708561,1744365033153,-300.0,0.00019846,2]
[357708562,1744365033163,-12500.0,0.00019847,2]
[357708563,1744365033172,-12500.0,0.00019847,2]
[357708564,1744365033183,-12500.0,0.00019856,2]
[357708565,1744365033192,-12500.0,0.00019856,2]
[357708566,1744365033201,-12500.0,0.00019865,2]
[357708567,1744365033210,-12500.0,0.00019865,2]
[357708568,1744365033222,-250.0,0.00019867,2]
[357708570,1744365033231,-712.0,0.00019873,2]
[357708571,1744365033241,-12500.0,0.00019874,2]
[357708573,1744365033251,-12500.0,0.00019874,2]
[357708574,1744365033262,-12500.0,0.00019882,2]
[357708575,1744365033272,-12500.0,0.00019882,2]
[357708576,1744365033282,-12500.0,0.00019891,2]
[357708577,1744365033291,-12500.0,0.00019891,2]
[357708578,1744365033301,-167.39489527,0.000199,2]
[357708579,1744365033311,-1632.83021876,0.000199,2]
[357708580,1744365033321,-20422.27675119,0.000199,2]
[357708581,1744365033330,-163.02355415,0.000199,2]
[357708582,1744365033340,-12500.0,0.000199,2]
[357708583,1744365033350,-189.09235744,0.000199,2]
[357708584,1744365033359,-682.09671472,0.000199,2]
[357708585,1744365033369,-12500.0,0.000199,2]
[357708586,1744365033379,-7182.51708518,0.000199,2]
[357708587,1744365033388,-203.61373272,0.000199,2]
[357708588,1744365033398,-1081.00185134,0.000199,2]
[357708589,1744365033408,-250.0,0.00019942,2]
[357708590,1744365033418,-1090.752,0.00019945,2]
[357708591,1744365033427,-500.0,0.00019973,2]
[357708592,1744365033438,-500.0,0.00019973,2]
[357708593,1744365033448,-21515.85,0.00019975,2]
[357708594,1744365033457,-532703.89379012,0.0002,2]
[357708595,1744365033472,-260824.87833439,0.0002,2]
[357708598,1744365038303,-180.78815424,0.00018943,2]
[357708599,1744365038313,-901.60769966,0.0002,2]
[357708600,1744365038324,-2588.96496467,0.0002,2]
[357708635,1744365040087,-82163.18066011,0.0002,2]
[357708636,1744365040099,-4997.06861286,0.0002,2]
[357708637,1744365040110,-286.2346415,0.0002,2]
[357708638,1744365040121,-1592.72936999,0.0002,2]
[357708665,1744365042923,-908.4075,0.0002,2]
[357708666,1744365043040,-1899.36384627,0.0002,2]
[357708667,1744365043053,-2753.70494342,0.0002,2]
[357708668,1744365043080,-0.3496849,0.0002,2]
[357708669,1744365043096,-971.4300002,0.0002,2]
[357708670,1744365043156,-10953.79610013,0.0002,2]
[357708671,1744365043168,-60426.94742392,0.0002,2]
[357708679,1744365043728,-14217.54089657,0.0002,2]
[357708689,1744365046252,-4694.70000011,0.0002,2]
[357708690,1744365046264,-3456.71842897,0.0002,2]
[357708691,1744365046276,-1074.76174,0.0002,2]
[357708692,1744365046288,-1521.53041112,0.0002,2]
[357708693,1744365046301,-2433.1,0.0002,2]
[357708694,1744365046413,-534.58703292,0.0002,2]
[357708695,1744365046431,-1144.96000002,0.0002,2]
[357708696,1744365134761,200.0,0.0004423,120]
[357708697,1744365135392,207.4,0.0004423,120]
[357708698,1744365136501,215.0738,0.0004423,120]
[357708699,1744365136719,223.0315306,0.0004423,120]
[357708700,1744365137322,231.28369723,0.0004423,120]
[357708701,1744365137961,239.84119403,0.0004423,120]
[357708702,1744365138695,248.71531821,0.0004423,120]
[357708703,1744365139654,257.91778498,0.0004423,120]
[357708704,1744365140336,267.46074303,0.0004423,120]
[357708705,1744365140900,277.35679052,0.0004423,120]
[357708706,1744365141509,287.61899177,0.0004423,120]
[357708707,1744365142137,298.26089446,0.0004423,120]
[357708708,1744365142784,309.29654756,0.0004423,120]
[357708709,1744365143406,320.74051982,0.0004423,120]
[357708710,1744365144078,332.60791905,0.0004423,120]
[357708711,1744365144736,344.91441206,0.0004423,120]
[357708712,1744365145381,357.6762453,0.0004423,120]
[357708713,1744365146036,370.91026638,0.0004423,120]
[357708714,1744365147029,384.63394623,0.0004423,120]
[357708715,1744365147307,384.63394623,0.0004423,120]
[357708732,1744365434659,200.0,0.0004423,120]
[357708733,1744365435831,207.4,0.0004423,120]
[357708734,1744365436449,215.0738,0.0004423,120]
[357708735,1744365437149,223.0315306,0.0004423,120]
[357708736,1744365437782,231.28369723,0.0004423,120]
[357708737,1744365438428,239.84119403,0.0004423,120]
[357708738,1744365439080,248.71531821,0.0004423,120]
[357708739,1744365439731,257.91778498,0.0004423,120]
[357708740,1744365440341,267.46074303,0.0004423,120]
[357708741,1744365440985,277.35679052,0.0004423,120]
[357708742,1744365441645,287.61899177,0.0004423,120]
[357708743,1744365442392,298.26089446,0.0004423,120]
[357708744,1744365442963,309.29654756,0.0004423,120]
[357708745,1744365443633,320.74051982,0.0004423,120]
[357708746,1744365444258,332.60791905,0.0004423,120]
[357708747,1744365444870,344.91441206,0.0004423,120]
[357708748,1744365445494,357.6762453,0.0004423,120]
[357708749,1744365446114,370.91026638,0.0004423,120]
[357708750,1744365446802,384.63394623,0.0004423,120]
[357708751,1744365447647,384.63394623,0.0004423,120]
[357708752,1744365484951,169.93,0.00015994,2]
[357708753,1744365509848,1106.84203604,0.00044221,30]
[357708754,1744365610212,1215.77,0.00027425,30]
[357708756,1744365734144,200.0,0.00044221,120]
[357708757,1744365734806,207.4,0.00044221,120]
[357708758,1744365735553,215.0738,0.00044221,120]
[357708759,1744365736285,223.0315306,0.00044221,120]
[357708760,1744365736913,231.28369723,0.00044221,120]
[357708761,1744365737561,239.84119403,0.00044221,120]
[357708762,1744365738193,248.71531821,0.00044221,120]
[357708763,1744365738843,257.91778498,0.00044221,120]
[357708764,1744365739649,267.46074303,0.00044221,120]
[357708765,1744365740165,277.35679052,0.00044221,120]
[357708766,1744365740823,287.61899177,0.00044221,120]
[357708767,1744365741478,298.26089446,0.00044221,120]
[357708768,1744365742150,309.29654756,0.00044221,120]
[357708769,1744365742870,320.74051982,0.00044221,120]
[357708770,1744365743490,332.60791905,0.00044221,120]
[357708771,1744365744333,344.91441206,0.00044221,120]
[357708772,1744365744979,357.6762453,0.00044221,120]
[357708773,1744365745603,370.91026638,0.00044221,120]
[357708774,1744365746270,384.63394623,0.00044221,120]
[357708775,1744365746896,384.63394623,0.00044221,120]
[357708776,1744365805574,70000.0,0.00044221,45]
[357708777,1744365805721,378.00813265,0.00044221,120]
[357708778,1744365819462,2000.0,0.00044221,120]
[357708779,1744365833807,324.75623563,0.00044221,120]
[357708780,1744365851298,483.6549,0.00044221,30]
[357708781,1744365863423,1497.6,0.00044221,120]
[357708784,1744365988689,525.70172942,0.00044221,120]
[357708785,1744366035761,200.0,0.00044221,120]
[357708786,1744366036437,207.4,0.00044221,120]
[357708787,1744366037142,215.0738,0.00044221,120]
[357708788,1744366037776,223.0315306,0.00044221,120]
[357708789,1744366038446,231.28369723,0.00044221,120]
[357708790,1744366039670,239.84119403,0.00044221,120]
[357708791,1744366039764,248.71531821,0.00044221,120]
[357708792,1744366040380,257.91778498,0.00044221,120]
[357708793,1744366041023,267.46074303,0.00044221,120]
[357708794,1744366041662,277.35679052,0.00044221,120]
[357708795,1744366042862,287.61899177,0.00044221,120]
[357708796,1744366043490,298.26089446,0.00044221,120]
[357708797,1744366044118,309.29654756,0.00044221,120]
[357708798,1744366044772,320.74051982,0.00044221,120]
[357708799,1744366045419,332.60791905,0.00044221,120]
[357708800,1744366046133,344.91441206,0.00044221,120]
[357708801,1744366046777,357.6762453,0.00044221,120]
[357708802,1744366047640,370.91026638,0.00044221,120]
[357708803,1744366048314,384.63394623,0.00044221,120]
[357708804,1744366048943,384.63394623,0.00044221,120]
[357708812,1744366232066,-939.68,0.00017572,2]
[357708813,1744366232076,-250.0,0.00017786,2]
[357708814,1744366232086,-98.81999998,0.00018,2]
[357708815,1744366232098,-189.34359378,0.00018,2]
[357708816,1744366232107,-250.0,0.0001828,2]
[357708817,1744366232116,-228.07905145,0.00018905,2]
[357708818,1744366232176,-26.67540955,0.00018905,2]
[357708819,1744366232186,-250.0,0.00019,2]